[Event "German Bundesliga 2021-22"]
[Site "Germany"]
[Date "2022.04.10"]
[Round "4.11"]
[White "Vaisser, Anatoly"]
[Black "Kasimdzhanov, Rustam"]
[Result "0-1"]
[ECO "D31"]
[WhiteElo "2484"]
[BlackElo "2659"]
[Annotator "TA"]
[PlyCount "208"]
[EventDate "2022.03.05"]
[EventType "team-tourn"]
[EventCountry "GER"]
[SourceTitle "playchess.com"]
[Source "ChessBase"]
[SourceQuality "1"]
[TimeControl "40/5400+30:1800+30"]

{[%evp 55,208,-205,-176,-163,-172,-181,-174,-174,-165,-165,-164,-169,-167,-184,-188,-177,-162,-166,-150,-155,-151,-147,0,-156,-143,-150,-151,-171,-171,-171,-171,-171,-171,-173,-172,-171,0,-166,-161,-156,-151,-164,0,0,0,-111,-111,-111,-111,-111,-104,-111,-98,-110,-98,-111,-102,-129,0,-111,-111,-111,-111,-111,-98,-111,-111,-112,-111,-112,0,-112,-109,-112,-111,-112,-111,-111,-111,-111,-111,-111,-111,-131,-127,-126,-118,-113,-97,-97,-73,-73,-60,-74,-68,-65,-25,-89,-50,-111,-89,-111,-111,-111,-111,-111,-111,-111,-111,-111,-93,-93,0,-111,-43,-106,-104,-90,0,-95,0,-43,-18,-43,-43,-43,-43,-43,-20,-20,-20,-20,-20,-20,-20,-20,-20,-20,-20,-20,-20,-20,-20,-86,-86,-86,-77,-29986,-29987,-29987,-29988,-29988,-29989,-29994,-29995]} 1. d4 {[%emt 0:00:00]} d5 {[%emt 0:00:00]} 2. c4 {[%emt 0:00:00]} e6 {[%emt 0:00:00]} 3. Nc3 {[%emt 0:00:00]} Be7 {[%emt 0:00:00]} 4. cxd5 {[%emt 0:00:00]} exd5 {[%emt 0:00:00]} 5. Bf4 {[%emt 0:00:00]} c6 {[%emt 0:00:00]} 6. e3 {[%emt 0:00:00]} Bf5 {[%emt 0:00:00]} 7. Nge2 {[%emt 0:00:00]} Nd7 {[%emt 0:00:00]} 8. f3 {[%emt 0:01:41]} Bg6 {[%emt 0:02:57]} 9. Bg3 {[%emt 0:04:13]} Ngf6 {[%emt 0:13:12]} 10. Nf4 {[%emt 0:01:30]} Nh5 {[%emt 0:01:45]} 11. Nxg6 {[%emt 0:05:37]} hxg6 {[%emt 0:00:37]} 12. Bf2 {[%emt 0:00:12]} Bd6 {[%emt 0:00:24]} 13. Bd3 {[%emt 0:10:19]} Ng3 {[%emt 0:02:52]} 14. Rg1 {[%emt 0:00:11]} Rxh2 {[%emt 0:01:29]} 15. e4 {[%emt 0:12:58]} Nh1 {[%emt 0:11:35]} 16. Be3 {[%emt 0:02:35]} Qh4+ {[%emt 0:04:12]} 17. Kd2 {[%emt 0:01:09]} Nf2 {[%emt 0:03:13]} 18. Qf1 {[%emt 0:17:26]} Nxd3 {[%emt 0:04:19]} 19. Kxd3 {[%emt 0:02:19]} Nb6 {[%emt 0:05:20]} 20. exd5 {[%emt 0:12:55]} Nxd5 {[%emt 0:03:01]} 21. Nxd5 {[%emt 0:05:19]} cxd5 {[%emt 0:00:30]} 22. Qe1 {[%emt 0:01:18]} Qxe1 {[%emt 0:01:25]} 23. Raxe1 {[%emt 0:00:07]} Kd7 {[%emt 0:00:06]} 24. Re2 {[%emt 0:00:36]} Re8 {[%emt 0:05:47]} 25. Rc1 {[%emt 0:06:44]} g5 {[%emt 0:09:54]} 26. Rcc2 {[%emt 0:02:57]} f6 {[%emt 0:01:39]} 27. g4 {[%emt 0:04:23]} Rh3 {[%emt 0:02:47]} 28. Rf2 {[%emt 0:00:10]} Rh1 {[%emt 0:00:26]} 29. Bd2 {[%emt 0:01:40]} Reh8 {[%emt 0:08:58]} 30. Rc1 {[%emt 0:02:55]} Rxc1 {[%emt 0:07:25]} 31. Bxc1 {[%emt 0:00:01]} Rh1 {[%emt 0:00:15]} 32. Bd2 {[%emt 0:00:41]} Bf4 {[%emt 0:05:21]} 33. Bc3 {[%emt 0:00:50]} Rg1 {[%emt 0:01:43]} 34. Ke2 {[%emt 0:00:40]} Bg3 {[%emt 0:01:55]} 35. Rf1 {[%emt 0:00:08]} Rg2+ $1 {[%emt 0:00:06]} 36. Kd3 {[%emt 0:00:14]} Rh2 {[%emt 0:02:37]} 37. Rc1 {[%emt 0:03:59]} Rf2 {[%emt 0:01:41]} 38. Ke3 {[%emt 0:01:21]} Rh2 {[%emt 0:00:12]} 39. Kd3 $1 {[%emt 0:00:25]} Bd6 {[%emt 0:01:24]} 40. Rc2 {[%emt 0:01:44]} Rh3 {[%emt 0:00:28]} 41. Rf2 {[%emt 0:30:55]} Ke6 {[%emt 0:00:00]} 42. Ke2 {[%emt 0:00:00]} f5 {[%emt 0:00:00]} 43. Rg2 {[%emt 0:00:00]} Bf4 {[%emt 0:00:00]} 44. Be1 {[%emt 0:00:00]} Rh1 {[%emt 0:00:00]} 45. Bc3 {[%emt 0:00:00]} Rh3 {[%emt 0:00:00]} 46. Be1 $1 {[%emt 0:00:00]} Kf7 {[%emt 0:00:00]} 47. Bf2 {[%emt 0:00:00]} fxg4 {[%emt 0:03:49]} 48. fxg4 {[%emt 0:00:00]} Bc1 $2 {[%emt 0:00:50]} (48... b5 $19 {Threatens to win with ...a5.} 49. Rg1 a5) 49. Rg1 $1 $11 {[%emt 0:00:00]} Bf4 {[%emt 0:00:06]} 50. Rd1 {[%emt 0:00:00]} (50. Rg2 $11) 50... Rh6 $17 {[%emt 0:01:22]} 51. Rd3 {[%emt 0:00:00]} Rb6 {[%emt 0:06:00]} 52. b3 {[%emt 0:00:00]} Rc6 {[%emt 0:00:53]} 53. a4 {[%emt 0:00:00]} Ke6 {[%emt 0:00:22]} 54. Be3 {[%emt 0:00:00]} Kd7 {[%emt 0:03:12]} 55. Bf2 {[%emt 0:00:00]} Kc7 {[%emt 0:05:41]} 56. Kf3 {[%emt 0:00:00]} Kd7 {[%emt 0:02:05]} ({Better is} 56... Kb6 $17 57. Kg2 Rc2) 57. Be1 {[%emt 0:00:00]} (57. Ke2 $1 $11 {was the only way to keep the balance.}) 57... Rf6 {[%emt 0:00:10]} 58. Kg2 {[%emt 0:00:00]} Re6 {[%emt 0:01:41]} 59. Bf2 {[%emt 0:00:00]} Rc6 {[%emt 0:03:24]} 60. Rh3 {[%emt 0:00:08]} Rc2 {[%emt 0:02:09]} 61. Kf1 {[%emt 0:01:10]} Rc1+ {[%emt 0:00:20]} 62. Ke2 {[%emt 0:00:31]} Rc2+ {[%emt 0:00:13]} 63. Kf1 $1 {[%emt 0:00:14]} Rb2 {[%emt 0:01:26]} 64. Be1 {[%emt 0:01:01]} Bd6 {[%emt 0:00:49]} 65. Rf3 {[%emt 0:01:37]} Be7 {[%emt 0:00:21]} 66. Bf2 {[%emt 0:02:51]} Bf6 {[%emt 0:00:10]} 67. Rd3 {[%emt 0:00:53]} Rc2 {[%emt 0:02:34]} 68. Kg2 {[%emt 0:00:57]} Kc6 {[%emt 0:00:11]} 69. Kf3 {[%emt 0:00:17]} b5 {[%emt 0:00:03]} 70. axb5+ {[%emt 0:00:42]} Kxb5 {[%emt 0:00:02]} 71. Be1 {[%emt 0:01:07]} Rc1 {[%emt 0:00:23]} 72. Ke2 {[%emt 0:00:34]} Rc8 {[%emt 0:00:20]} 73. Bd2 {[%emt 0:01:03]} Re8+ {[%emt 0:01:20]} 74. Re3 {[%emt 0:00:19]} Rh8 {[%emt 0:00:07]} 75. Kd3 {[%emt 0:00:57]} Rh4 {[%emt 0:02:59]} 76. Rg3 {[%emt 0:00:15]} (76. Re6 $1 $11 {keeps the balance.}) 76... Rh2 {[%emt 0:01:13]} 77. Bc3 {[%emt 0:00:18]} (77. Rf3 $15) 77... Rh1 {[%emt 0:00:45]} 78. Rg2 {[%emt 0:00:32]} Rh3+ {[%emt 0:00:30]} 79. Kc2 {[%emt 0:00:11]} Rf3 {[%emt 0:01:17]} 80. Rg1 {[%emt 0:00:21]} Bd8 {[%emt 0:00:44]} 81. Bd2 {[%emt 0:02:24]} Bb6 {[%emt 0:00:18]} 82. Bc3 {[%emt 0:01:04]} Rf4 {[%emt 0:02:00]} 83. Kd3 {[%emt 0:00:07]} Rf3+ {[%emt 0:01:16]} 84. Kc2 {[%emt 0:00:08]} Kc6 {[%emt 0:00:33]} (84... Rf2+ $17 85. Kd3 Rf3+ 86. Kd2 Bd8) 85. Rg2 {[%emt 0:00:18]} (85. Re1 $1 $15) 85... Rf4 {[%emt 0:00:25]} 86. Kd3 {[%emt 0:00:10]} Rf3+ {[%emt 0:00:50]} 87. Kc2 {[%emt 0:00:11]} Kb5 {[%emt 0:00:32]} (87... Bd8 $17 88. Re2 Bf6 89. Re6+ Kc7) 88. Re2 {[%emt 0:00:21]} Rg3 {[%emt 0:00:38]} 89. Re5 {[%emt 0:00:05]} Rxg4 {[%emt 0:00:08]} 90. Rxd5+ {[%emt 0:00:05]} Kc6 {[%emt 0:00:11]} 91. Rf5 {[%emt 0:00:46]} g6 {[%emt 0:01:05]} 92. Rf6+ {[%emt 0:00:35]} Kd5 {[%emt 0:00:09]} 93. Rxg6 {[%emt 0:00:10]} Rg2+ {[%emt 0:00:52]} 94. Bd2 {[%emt 0:02:45]} g4 {[%emt 0:00:30]} 95. Kd3 {[%emt 0:00:09]} Rg3+ {[%emt 0:00:48]} 96. Be3 {[%emt 0:00:50]} Bxd4 {[%emt 0:00:07]} 97. Rg5+ {[%emt 0:00:12]} Be5 {[%emt 0:00:05]} 98. Ke2 {[%emt 0:00:33]} Ke4 {[%emt 0:00:15]} 99. Bxa7 {[%emt 0:00:09]} (99. Bf2 $1 $11 {remains equal.} Bf4 100. Rg7 Rxb3 101. Rxg4) 99... Rg2+ $1 $17 {[%emt 0:00:31]} ({Much weaker is} 99... Rxb3 $6 100. Rxg4+ Bf4 101. Rh4 $11) 100. Kf1 {[%emt 0:00:22]} Ra2 {[%emt 0:00:12]} 101. Rxg4+ $2 {[%emt 0:00:19][%mdl 8192] [#]} (101. Bf2 $17) 101... Kf3 $1 {[%emt 0:00:17]} 102. Ra4 {[%emt 0:00:03] [#]} Rd2 $1 {[%emt 0:01:23]} ({Weaker is} 102... Rb2 103. Ke1 $11) 103. Ke1 {[%emt 0:00:51]} Rd3 {[%emt 0:00:19]} 104. Ra2 {[%emt 0:03:10]} Bc3+ {[%emt 0:00:09]} 0-1

[Event "German Bundesliga 2021-22"]
[Site "Germany"]
[Date "2022.04.10"]
[Round "4.12"]
[White "Naiditsch, Arkadij"]
[Black "Stark, Lars"]
[Result "1-0"]
[ECO "A46"]
[WhiteElo "2648"]
[BlackElo "2386"]
[Annotator "TA"]
[PlyCount "87"]
[EventDate "2022.03.05"]
[EventType "team-tourn"]
[EventCountry "GER"]
[SourceTitle "playchess.com"]
[Source "ChessBase"]
[SourceQuality "1"]
[TimeControl "40/5400+30:1800+30"]

{[%evp 9,87,6,20,20,18,12,7,6,21,16,12,0,13,2,4,-8,16,12,14,3,6,0,17,0,0,0,3,10,31,-8,-12,-26,-11,-58,-21,-24,-12,-38,-38,-43,-43,-44,0,0,0,0,29,35,84,37,79,19,25,41,37,24,26,23,31,50,65,0,70,74,77,77,75,0,157,147,189,189,189,175,194,72,333,330,289,225]} 1. d4 {[%emt 0:00:00]} Nf6 {[%emt 0:00:00]} 2. Nf3 {[%emt 0:00:00]} e6 {[%emt 0:00:00]} 3. g3 {[%emt 0:00:00]} d5 {[%emt 0:00:00]} 4. Bg2 {[%emt 0:00:00]} Be7 {[%emt 0:01:40]} 5. O-O {[%emt 0:00:00]} Nbd7 {[%emt 0:00:55]} 6. a4 {[%emt 0:00:00] D02: 1 d4 d5 2 Nf3 sidelines, including 2...Nf6 3 g3 and 2...Nf6 3 Bf4.} a5 {[%emt 0:01:04]} 7. b3 {[%emt 0:00:00]} O-O {[%emt 0:01:10]} 8. Bb2 {[%emt 0:00:00] The position is equal.} c6 {[%emt 0:11:48]} 9. Nbd2 {[%emt 0:02:38]} b6 {[%emt 0:00:22]} 10. Ne5 {[%emt 0:07:53]} Bb7 {[%emt 0:01:11] [#]} 11. e3 $146 {[%emt 0:07:56]} ({Predecessor:} 11. c4 Nxe5 12. dxe5 Nd7 13. Qc2 Bb4 14. Rfd1 Rc8 15. e4 Qe7 16. Rac1 Rfd8 17. Bc3 Ba3 18. Ra1 Bb4 19. Rac1 Ba6 20. Bf1 Bb7 21. Bg2 {½-½ (21) Koneru,H (2484)-Schenk,A (2443) Budapest 2001}) 11... Rc8 {[%emt 0:02:21]} 12. Rc1 {[%emt 0:07:32]} Bb4 {[%emt 0:02:10]} 13. c3 {[%emt 0:10:27]} Bd6 {[%emt 0:01:08]} 14. f4 {[%emt 0:00:12]} c5 {[%emt 0:03:25]} 15. Qe2 {[%emt 0:15:37]} Qe7 {[%emt 0:04:34]} 16. g4 {[%emt 0:00:40]} Ne4 {[%emt 0:05:44]} 17. Nxe4 {[%emt 0:03:52]} dxe4 {[%emt 0:00:51]} 18. Nc4 {[%emt 0:00:34][%cal Be5c4,Bc4a3,Ba3b5][%mdl 32]} Bc7 {[%emt 0:03:20]} 19. Na3 {[%emt 0:00:56]} Qh4 {[%emt 0:08:33]} 20. Nb5 {[%emt 0:02:04]} Bb8 {[%emt 0:00:39]} 21. h3 {[%emt 0:20:49]} (21. c4 $11 {is more appropriate.}) 21... f5 {[%emt 0:19:27]} (21... g5 $5 {[%cal Rc5d4]} 22. Qe1 Qxe1 23. Rcxe1 gxf4 24. exf4 cxd4 25. Nxd4 Nc5 $15) 22. Qe1 {[%emt 0:01:45]} Qe7 {[%emt 0:01:44]} 23. g5 {[%emt 0:02:00]} Bd5 {[%emt 0:02:49]} 24. c4 {[%emt 0:00:22]} Bc6 {[%emt 0:00:06]} 25. h4 {[%emt 0:08:47]} Bxb5 {[%emt 0:01:59]} 26. axb5 {[%emt 0:00:01]} Bd6 {[%emt 0:00:34]} 27. Rc2 {[%emt 0:00:02]} a4 {[%emt 0:04:32]} 28. bxa4 {[%emt 0:00:13]} Ra8 {[%emt 0:00:07]} (28... cxd4 $14 29. Bxd4 (29. exd4 Ra8 $11) 29... Ra8) 29. Qa1 {[%emt 0:01:42]} (29. d5 $1 $16 {[%cal Rd5e6]}) 29... Ra7 {[%emt 0:00:18]} 30. Bc3 {[%emt 0:03:36]} (30. d5 $16) 30... cxd4 {[%emt 0:00:09]} 31. exd4 {[%emt 0:01:03]} ({Reject} 31. Bxd4 Nc5 $15) 31... Bb4 {[%emt 0:00:30] Inhibits a5.} 32. Rb1 {[%emt 0:03:23]} Bxc3 {[%emt 0:00:21]} 33. Qxc3 {[%emt 0:00:02]} Rxa4 {[%emt 0:04:12]} 34. c5 {[%emt 0:00:03] Threatens to win with c6.} Rc8 {[%emt 0:00:44]} 35. c6 {[%emt 0:01:48]} (35. Bf1 $14) 35... Qd6 {[%emt 0:03:00]} (35... Nf8 $1 $11) 36. Rd2 $14 {[%emt 0:00:24][%cal Od4d5]} Nf8 {[%emt 0:00:20]} 37. d5 $1 $36 {[%emt 0:01:01][%mdl 2048] White is in control.} exd5 {[%emt 0:00:36] [#] And now ...Ne6 would win.} 38. Qb3 {[%emt 0:00:40] &Bianco is much more active.} ({White should play} 38. Rbd1 $1 $16 Ra3 39. Qc1) 38... Ra3 $2 {[%emt 0:09:41]} (38... Qxf4 $2 39. Rxd5 Kh8 40. Rf1 $18) ({Better is} 38... Qc5+ $11 39. Kh2 Rc4) 39. Qxd5+ $16 {[%emt 0:00:08]} Qxd5 {[%emt 0:02:01]} 40. Rxd5 {[%emt 0:00:02]} g6 {[%emt 0:00:28]} 41. Bf1 {[%emt 0:00:00]} Rc3 {[%emt 0:00:00] [#]} 42. Rd6 {[%emt 0:00:00] Against Ne6} (42. Rd4 $1 $18 {and the rest is easy.}) 42... Kf7 $2 {[%emt 0:00:00][%mdl 8192]} (42... Ra8 $16 {was necessary.}) 43. Ra1 $18 {[%emt 0:00:00]} Ke7 {[%emt 0:00:00]} 44. Rdd1 {[%emt 0:01:23] Weighted Error Value: White=0.19 (very precise) /Black=0.29 (precise)} 1-0

[Event "German Bundesliga 2021-22"]
[Site "Germany"]
[Date "2022.04.10"]
[Round "4.12"]
[White "Van Wely, Loek"]
[Black "Alonso Rosell, Alvar"]
[Result "1/2-1/2"]
[ECO "A26"]
[WhiteElo "2612"]
[BlackElo "2570"]
[Annotator "TA"]
[PlyCount "89"]
[EventDate "2022.03.05"]
[EventType "team-tourn"]
[EventCountry "GER"]
[SourceTitle "playchess.com"]
[Source "ChessBase"]
[SourceQuality "1"]
[TimeControl "40/5400+30:1800+30"]

{[%evp 16,89,13,19,14,9,11,6,22,21,17,18,21,23,17,22,49,3,4,15,14,13,24,16,25,23,25,6,4,-15,16,-16,0,0,0,0,32,32,32,31,89,0,0,0,0,0,0,0,0,0,0,0,0,0,0,0,0,0,0,0,0,0,0,0,0,0,0,0,0,0,0,0,0,0,0,0]} 1. c4 {[%emt 0:00:00]} e5 {[%emt 0:00:00]} 2. g3 {[%emt 0:00:00]} Nc6 {[%emt 0:03:25]} 3. Bg2 {[%emt 0:00:00]} g6 {[%emt 0:00:05]} 4. Nc3 {[%emt 0:00:00]} Bg7 {[%emt 0:02:52]} 5. e4 {[%emt 0:00:31]} d6 {[%emt 0:14:48]} 6. Nge2 {[%emt 0:01:17]} f5 {[%emt 0:01:20]} 7. d3 {[%emt 0:02:18]} Nf6 {[%emt 0:00:57]} 8. Nd5 {[%emt 0:03:16]} O-O {[%emt 0:13:53]} 9. O-O {[%emt 0:12:56]} Be6 {[%emt 0:02:34] A26: English Opening vs King's Indian with ...Nc6 and d3.} 10. Be3 {[%emt 0:08:35]} Qd7 {[%emt 0:02:30]} 11. b4 {[%emt 0:01:39][%cal Bb2b4,Bb4b5][%mdl 32]} Nh5 {[%emt 0:08:48][%cal Of5f4]} 12. exf5 {[%emt 0:06:10]} Bxf5 {[%emt 0:02:45]} 13. b5 {[%emt 0:01:58]} Nd8 {[%emt 0:04:00] [#]} 14. d4 $146 {[%emt 0:02:10]} ({Predecessor:} 14. Bg5 Kh8 15. Qd2 c6 16. bxc6 bxc6 17. Nb4 a5 18. Bxd8 axb4 19. Bg5 Ra4 20. Rab1 {0-1 (69) Docampo Beltran,D (2404)-Cuenca Jimenez,J (2518) Varadero 2016}) 14... c6 {[%emt 0:04:16]} 15. Ndc3 {[%emt 0:05:53]} exd4 {[%emt 0:03:40] [#]} 16. Nxd4 {[%emt 0:03:23]} (16. bxc6 $1 $14 bxc6 17. Bxd4) 16... Bh3 $11 {[%emt 0:00:51]} 17. Rc1 {[%emt 0:10:50]} Bxg2 {[%emt 0:04:12]} 18. Kxg2 {[%emt 0:00:54]} Nf6 {[%emt 0:00:06]} 19. h3 {[%emt 0:08:04] Against Ng4} Nf7 {[%emt 0:04:23]} 20. bxc6 {[%emt 0:02:55]} bxc6 {[%emt 0:00:10]} 21. f4 {[%emt 0:05:33]} Rae8 {[%emt 0:04:05]} 22. Qf3 {[%emt 0:01:30]} d5 {[%emt 0:04:06]} 23. Bf2 {[%emt 0:08:10]} (23. cxd5 $2 Ng5 $1 {[%mdl 512]} 24. fxg5 Nxd5 $19) 23... Ne4 {[%emt 0:10:53]} ({Resist} 23... dxc4 24. Qxc6 g5 25. Qxd7 (25. Qxc4 gxf4 26. gxf4 Ne4 $14) 25... Nxd7 26. Ndb5 $14) 24. Nxe4 {[%emt 0:01:25]} Rxe4 {[%emt 0:00:30]} 25. cxd5 {[%emt 0:01:27]} cxd5 {[%emt 0:05:11]} (25... Ng5 $5 26. Qg4 Qxd5 $15) 26. Qd3 {[%emt 0:06:07]} g5 {[%emt 0:01:39]} 27. f5 {[%emt 0:00:56] And now Ne6 would win.} Ne5 {[%emt 0:00:42] [#]} (27... Bxd4 $14 28. Bxd4 Ne5) 28. Qb5 {[%emt 0:00:18]} (28. Qb1 $1 $16 {Black must now prevent Ne6.} g4 29. hxg4) 28... Qxb5 {[%emt 0:00:37] The position is equal.} 29. Nxb5 {[%emt 0:00:03]} Re2 {[%emt 0:01:11]} (29... Rxf5 $2 30. Nd6 Rf8 31. Nxe4 dxe4 32. Bxa7 $18) 30. Nc3 {[%emt 0:02:05]} Rxf2+ {[%emt 0:00:02]} 31. Kxf2 {[%emt 0:02:50] Strongly threatening Ke3.} Nd3+ {[%emt 0:00:01]} 32. Ke2 {[%emt 0:00:20]} Nxc1+ {[%emt 0:00:01]} 33. Rxc1 {[%emt 0:00:06]} Rxf5 {[%emt 0:00:36][%mdl 4096] Endgame KRB-KRN} 34. g4 {[%emt 0:00:26]} Re5+ {[%emt 0:00:53]} 35. Kd3 {[%emt 0:00:04]} d4 {[%emt 0:01:18]} 36. Ne4 {[%emt 0:00:11]} Ra5 {[%emt 0:00:11]} 37. Rc8+ {[%emt 0:01:17]} Kf7 {[%emt 0:00:28]} 38. Rc7+ {[%emt 0:00:19]} Kg8 {[%emt 0:00:16]} 39. Rc8+ {[%emt 0:01:12]} Kf7 {[%emt 0:00:13]} 40. Rc7+ {[%emt 0:00:33]} Kg8 {[%emt 0:00:36]} 41. a4 {[%emt 0:00:00]} Rxa4 {[%emt 0:00:00]} 42. Rc8+ {[%emt 0:00:00]} Kf7 {[%emt 0:00:00] ...Ra3+ is the strong threat.} 43. Rc7+ {[%emt 0:00:00]} Kg8 {[%emt 0:00:00]} 44. Rc8+ {[%emt 0:00:00]} Kf7 {[%emt 0:00:00]} 45. Rc7+ {[%emt 0:00:04] Weighted Error Value: White=0.07 (flawless) /Black=0.06 (flawless)} 1/2-1/2

[Event "German Bundesliga 2021-22"]
[Site "Germany"]
[Date "2022.04.10"]
[Round "4.12"]
[White "Nyback, Tomi"]
[Black "Vogel, Roven"]
[Result "0-1"]
[ECO "E04"]
[WhiteElo "2573"]
[BlackElo "2452"]
[Annotator "RC"]
[PlyCount "104"]
[EventDate "2022.03.05"]
[EventType "team-tourn"]
[EventCountry "GER"]
[SourceTitle "playchess.com"]
[Source "ChessBase"]
[SourceQuality "1"]
[TimeControl "40/5400+30:1800+30"]

1. d4 {[%emt 0:00:00]} Nf6 {[%emt 0:00:00]} 2. c4 {[%emt 0:00:00]} e6 {[%emt 0:00:00]} 3. Nf3 {[%emt 0:00:00]} d5 {[%emt 0:00:00]} 4. g3 {[%emt 0:00:00]} dxc4 {[%emt 0:00:00]} 5. Bg2 {[%emt 0:00:00]} a6 {[%emt 0:00:00]} 6. O-O {[%emt 0:00:00]} Nc6 {[%emt 0:00:00]} 7. Nc3 {[%emt 0:00:00]} Be7 {[%emt 0:00:00]} 8. Qa4 {[%emt 0:04:27]} O-O {[%emt 0:00:00]} 9. Qxc4 {[%emt 0:00:21]} b5 {[%emt 0:00:00]} 10. Qb3 {[%emt 0:24:31]} Bb7 {[%emt 0:00:00]} 11. Bg5 {[%emt 0:04:32]} Nd7 {[%emt 0:34:17]} 12. Bxe7 {[%emt 0:03:32]} Qxe7 {[%emt 0:01:35]} 13. Rfd1 {[%emt 0:27:56]} Rac8 {[%emt 0:05:35]} 14. d5 {[%emt 0:07:35]} Nc5 {[%emt 0:01:56]} 15. dxc6 {[%emt 0:03:50]} Nxb3 {[%emt 0:00:07]} 16. cxb7 {[%emt 0:00:05]} Nxa1 {[%emt 0:00:22]} 17. bxc8=Q {[%emt 0:00:08]} Rxc8 {[%emt 0:00:07]} 18. Rxa1 {[%emt 0:00:06]} Qb4 {[%emt 0:03:21]} 19. Rb1 {[%emt 0:01:26]} Rd8 {[%emt 0:01:09]} 20. e3 {[%emt 0:09:23]} c5 {[%emt 0:21:40]} 21. Bf1 {[%emt 0:03:00]} f6 {[%emt 0:07:01]} 22. Be2 {[%emt 0:00:24]} Kf8 {[%emt 0:03:39]} 23. Kf1 {[%emt 0:00:49]} Ke7 {[%emt 0:00:09]} 24. Ke1 {[%emt 0:00:45]} Rd7 {[%emt 0:03:58]} 25. Nd2 {[%emt 0:00:44]} c4 {[%emt 0:01:12]} 26. Nde4 {[%emt 0:00:56]} Qa5 {[%emt 0:01:06]} 27. a3 {[%emt 0:00:21]} Qc7 {[%emt 0:03:16]} 28. Nd2 {[%emt 0:00:31]} Qe5 {[%emt 0:01:33]} 29. Nf3 {[%emt 0:00:54]} Qf5 {[%emt 0:02:26]} 30. Rc1 {[%emt 0:00:27]} Qh3 {[%emt 0:00:22]} 31. Bf1 {[%emt 0:02:05]} Qh5 {[%emt 0:00:05]} 32. Bg2 {[%emt 0:00:19]} Qc5 {[%emt 0:00:34]} 33. Nd4 {[%emt 0:01:11]} Rxd4 {[%emt 0:02:02]} 34. exd4 {[%emt 0:00:08]} Qxd4 {[%emt 0:00:04]} 35. Rd1 {[%emt 0:01:11]} Qc5 {[%emt 0:01:06]} 36. Rd2 {[%emt 0:01:04]} a5 {[%emt 0:00:40]} 37. Ne4 {[%emt 0:01:45]} Qh5 {[%emt 0:03:20]} 38. h3 {[%emt 0:00:53]} b4 {[%emt 0:00:31]} 39. a4 {[%emt 0:01:55]} Qe5 {[%emt 0:00:28]} 40. Kd1 {[%emt 0:01:43]} f5 {[%emt 0:03:04]} 41. f4 {[%emt 0:04:43]} Qc7 {[%emt 0:00:00]} 42. Nf2 {[%emt 0:03:35]} c3 {[%emt 0:00:00]} 43. bxc3 {[%emt 0:00:19]} bxc3 {[%emt 0:00:00]} 44. Rc2 {[%emt 0:06:54]} Qc4 {[%emt 0:00:00]} 45. Kc1 {[%emt 0:05:24]} Qxa4 {[%emt 0:00:00]} 46. Kb1 {[%emt 0:00:48]} Qd4 {[%emt 0:01:32]} 47. Bf1 {[%emt 0:04:37]} Qb6+ {[%emt 0:08:45]} 48. Ka1 {[%emt 0:00:55]} Qb3 {[%emt 0:00:53]} 49. Bd3 {[%emt 0:00:58]} a4 {[%emt 0:00:29]} 50. Nd1 {[%emt 0:01:23]} a3 {[%emt 0:01:00]} 51. Ne3 {[%emt 0:04:31]} a2 {[%emt 0:00:52]} 52. Re2 {[%emt 0:01:01]} c2 {[%emt 0:05:53]} 0-1

[Event "German Bundesliga 2021-22"]
[Site "Germany"]
[Date "2022.04.10"]
[Round "4.12"]
[White "Khenkin, Igor"]
[Black "Kraemer, Martin"]
[Result "1/2-1/2"]
[ECO "D43"]
[WhiteElo "2509"]
[BlackElo "2584"]
[Annotator "RC"]
[PlyCount "41"]
[EventDate "2022.03.05"]
[EventType "team-tourn"]
[EventCountry "GER"]
[SourceTitle "playchess.com"]
[Source "ChessBase"]
[SourceQuality "1"]
[TimeControl "40/5400+30:1800+30"]

1. d4 {[%emt 0:00:00]} Nf6 {[%emt 0:00:00]} 2. c4 {[%emt 0:00:00]} e6 {[%emt 0:00:00]} 3. Nf3 {[%emt 0:00:00]} d5 {[%emt 0:00:00]} 4. Nc3 {[%emt 0:00:00]} c6 {[%emt 0:00:00]} 5. Bg5 {[%emt 0:00:00]} h6 {[%emt 0:00:00]} 6. Bxf6 {[%emt 0:00:00]} Qxf6 {[%emt 0:00:00]} 7. e3 {[%emt 0:00:00]} g6 {[%emt 0:00:00]} 8. Be2 {[%emt 0:00:00]} Bg7 {[%emt 0:00:00]} 9. O-O {[%emt 0:00:00]} O-O {[%emt 0:00:00]} 10. cxd5 {[%emt 0:15:08]} exd5 {[%emt 0:00:00]} 11. b4 {[%emt 0:00:12]} Be6 {[%emt 0:11:14]} 12. Rc1 {[%emt 0:00:45]} a6 {[%emt 0:06:33]} 13. Na4 {[%emt 0:08:50]} Nd7 {[%emt 0:02:14]} 14. Nc5 {[%emt 0:00:08]} Nxc5 {[%emt 0:01:21]} 15. bxc5 {[%emt 0:00:06]} Rae8 {[%emt 0:12:50]} 16. Rb1 {[%emt 0:02:30]} Qe7 {[%emt 0:04:16]} 17. Ne1 {[%emt 0:02:53]} Bc8 {[%emt 0:07:31]} 18. Rb2 {[%emt 0:02:11]} h5 {[%emt 0:05:17]} 19. Nd3 {[%emt 0:00:20]} Qg5 {[%emt 0:01:09]} 20. Qd2 {[%emt 0:17:16]} Bf6 {[%emt 0:07:13]} 21. Rfb1 {[%emt 0:10:03]} 1/2-1/2